Cogmind - Beta 17 @@@ ROGUE MODE // 2026.08.20 @ 23:08:49 Player: Nebula avali Result: Destroyed by G-50 Soldier with Heavy Laser Performance ------------- Evolutions (0) 0 Regions Visited (1) 200 Robots Destroyed (21) 105 Value Destroyed (495) 495 Prototype IDs (2) 40 Alien Tech Used (0) 0 Bonus (8000) 8000 TOTAL SCORE: 8840 Bonus ------- Prayed to X0-1V1 5000 Major X0-1V1 Interference 3000 Cogmind --------- Core Integrity 0/250 Matter 213/300 Energy 100/100 System Corruption 11% Temperature Warm (167) Movement Hovering (80) Location -10/Materials Parts ------- > --- POWER (2) -------- (None) > --- PROPULSION (2) --- Light Treads Hover Unit > --- UTILITY (2) ------ Visual Processing Unit X0-1V1's Piety Tracker > --- WEAPON (1) ------- Light Cannon > --- INVENTORY (5) ---- Hover Unit Peak State ------------ > --- POWER ------------ Light Ion Engine > --- PROPULSION ------- Light Treads Light Treads > --- UTILITY ---------- Visual Processing Unit X0-1V1's Piety Tracker > --- WEAPON ----------- Improved EM Shotgun > --- INVENTORY -------- Light Treads Hover Unit Hover Unit Light Cannon [Rating: 21] Favorites ----------- Power Light Ion Engine Engine Light Ion Engine Propulsion Light Treads Treads Light Treads Leg Aluminum Leg Hover Unit Hover Unit Utility Visual Processing Unit Device X0-1V1's Piety Tracker Storage Small Storage Unit Processor Visual Processing Unit Weapon Assault Rifle Energy Gun Small Laser Ballistic Gun Assault Rifle Ballistic Cannon Light Cannon Build | -11 -10 ------- Run | Yrd Mat Slots Evolved . | . . Power . | . . Propulsion . | . . Utility . | . . Weapon . | . . Parts Attached 12 | . 12 Power 1 | . 1 Engine 1 | . 1 Core . | . . Reactor . | . . Propulsion 4 | . 4 Treads 3 | . 3 Leg . | . . Wheel . | . . Hover 1 | . 1 Flight . | . . Utility 2 | . 2 Device 1 | . 1 Storage . | . . Processor 1 | . 1 Hackware . | . . Protection . | . . Artifact . | . . Weapon 5 | . 5 Energy Gun 3 | . 3 Energy Cannon . | . . Ballistic Gun 1 | . 1 Ballistic Cannon 1 | . 1 Launcher . | . . Special Weapon . | . . Impact Weapon . | . . Slashing Weapon . | . . Piercing Weapon . | . . Special Melee Weapon . | . . Unidentified Prototypes 1 | . 1 Parts Lost 5 | . 5 Power . | . . Propulsion 3 | . 3 Utility . | . . Weapon 2 | . 2 Highest Loss Streak 3 | . 3 To Critical Strikes . | . . Average Backups 4 | . 4 Power . | . . Propulsion 3 | . 3 Utility . | . . Weapon . | . . Tool/Special . | . . Unused Backups 11 | . 11 Power 2 | . 2 Propulsion 6 | . 6 Utility 1 | . 1 Weapon 2 | . 2 Tool/Special . | . . Average Slot Usage (%) 93 | . 93 Engine 13 | . 13 Treads 22 | . 22 Leg 5 | . 5 Device 6 | . 6 Storage 7 | . 7 Processor 9 | . 9 Energy Gun 11 | . 11 Ballistic Gun 14 | . 14 Peak Build Rating 21 | . 21 Average Rating 13 | . 13 On Entrance 6 | 6 6 Avg Prop Armor Cover (%) 8 | . 8 Naked Turns . | . . Heaviest Build 12 | 12 12 Greatest Support 40 | 20 40 Greatest Overweight (x) . | . . Average Overweight (x) . | . . Largest Inventory Capacity 8 | . 8 Average Capacity 6 | . 6 Most Carried 6 | . 6 Average Carried 4 | . 4 Final Capacity 8 | 8 5 Final Carried 6 | 6 1 Class Distribution -------------------- 100% | Mutant Dominant Class ---------------- Mutant | -10/Materials Resources | -11 -10 ----------- Run | Yrd Mat Matter Collected 473 | 183 290 Remotely . | . . Salvage Created 593 | . 593 Parts 51 | . 51 Haulers Intercepted . | . . Recyclers Shooed . | . . Parts Field Recycled . | . . Retrieved Matter . | . . Parts Self-Destructed . | . . Prevented . | . . Parts Restored . | . . Kills | -11 -10 ------- Run | Yrd Mat Combat Hostiles Destroyed 16 | . 16 Guns 15 | . 15 Cannons 1 | . 1 Classes Destroyed 5 | . 5 Worker 1 | . 1 Tunneler 1 | . 1 Watcher 3 | . 3 Swarmer 6 | . 6 Grunt 10 | . 10 Best Kill Streak 8 | . 8 Combat Bots Only 6 | . 6 Max Kills in Single Turn 2 | . 2 Gunslinging 1 | . 1 Exploded . | . . Melee . | . . Uniques/NPCs Destroyed . | . . Combat | -11 -10 -------- Run | Yrd Mat Hostile Shots Fired 155 | . 155 Missed 44 | . 44 Hits 111 | . 111 Projectile 111 | . 111 Critical Strikes 3 | . 3 Damage Taken 1349 | . 1349 Core 253 | . 253 Absorbed by Shields . | . . Regen/Repaired (Parts) 23 | . 23 Core Remaining (%) 100 | 100 . Volleys Fired 68 | . 68 Largest 2 | . 2 Hottest 60 | . 60 Shots Fired 111 | . 111 Gun 106 | . 106 Cannon 5 | . 5 Launcher . | . . Special . | . . Kinetic 75 | . 75 Thermal 28 | . 28 Explosive . | . . Electromagnetic 8 | . 8 Robot Hit Streak 12 | . 12 Robot Miss Streak 6 | . 6 Penetration Max . | . . Secondary Targets 4 | . 4 Max Gunslinging Chain 1 | . 1 Shots Hit Robots 68 | . 68 Core Hits 33 | . 33 Critical Kills . | . . Critical Parts Destroyed 1 | . 1 Critical Strikes 1 | . 1 Destroy 1 | . 1 Melee Attacks . | . . Impact . | . . Slashing . | . . Piercing . | . . Sneak Attacks . | . . Combat Hostiles . | . . Follow-up Attacks . | . . Damage Inflicted 996 | . 996 Guns 926 | . 926 Cannons 70 | . 70 Explosions . | . . Melee . | . . Ramming . | . . Kinetic 645 | . 645 Thermal 180 | . 180 Explosive . | . . Electromagnetic 171 | . 171 Impact . | . . Slashing . | . . Piercing . | . . Highest Corruption 11 | . 11 Average Corruption 11 | . 11 Corruption Purged . | . . Corruption Blocked . | . . Effects 6 | . 6 Matter Fused 2 | . 2 Energy Discharges 2 | . 2 Data Loss (minor) 1 | . 1 Data Loss (major) 1 | . 1 Overload Shots . | . . Overflow Damage . | . . Projectiles . | . . Explosions . | . . Melee . | . . Knockbacks 2 | . 2 Impact . | . . Kinetic 2 | . 2 Secondary . | . . Self-Inflicted Damage . | . . Shots . | . . Rammed . | . . Targets Rammed . | . . Kicked . | . . Crushed . | . . Highest Temperature 213 | . 213 Average Temperature 51 | . 51 Received Heat Transfer 672 | . 672 Siege Activations . | . . Martial Activations . | . . Shielding Activations . | . . Robots Disrupted . | . . Combat Hostiles . | . . Robots Corrupted . | . . Combat Hostiles . | . . Parts Fried . | . . Impact Corruptions . | . . Robots Melted . | . . Combat Hostiles . | . . Parts Melted . | . . Heat Transferred 425 | . 425 Parts Sabotaged . | . . Parts Stolen . | . . Parts Stripped . | . . Power Chain Reactions . | . . Alert | -11 -10 ------- Run | Yrd Mat Maximum Alert Level . | . . Low Security (%) 100 | . 100 Level 1 . | . . Level 2 . | . . Level 3 . | . . Level 4 . | . . Level 5 . | . . High Security . | . . Max Security . | . . Peak Influence 115 | . 115 Initial . | . . Average 21 | . 21 Influence Increases 417 | . 417 Destroy 0b10 Robot/C 320 | . 320 Destroy 0b10 Robot/NC 25 | . 25 Destroy Leader 66 | . 66 Successful Hack 6 | . 6 Influence Decreases 386 | . 386 Time Decay 336 | . 336 Lost Part 50 | . 50 Squads Dispatched 4 | . 4 Investigation 1 | . 1 Extermination . | . . Reinforcement 2 | . 2 Assault 1 | . 1 Garrison . | . . Intercept . | . . Searches Triggered . | . . Construction Impeded . | . . Haulers Reinforced . | . . Active Scanning Responses . | . . Cargo Convoy Interrupts . | . . Stealth | -11 -10 --------- Run | Yrd Mat Distress Signals 1 | . 1 Communications Jammed . | . . Distress Signals . | . . Times Spotted 34 | . 34 Peak Tracking Total 7 | . 7 Tactical Retreats . | . . Traps | -11 -10 ------- Run | Yrd Mat Traps Triggered 1 | . 1 Indirectly . | . . Trap Hack Attempts . | . . Triggered . | . . Disarmed . | . . Reprogrammed . | . . Reused . | . . Traps Extracted . | . . Installed . | . . Triggered . | . . Machines | -11 -10 ---------- Run | Yrd Mat Machines Disabled . | . . Max in Single Turn . | . . Machines Repaired . | . . Machines Dismantled . | . . Machines Sabotaged . | . . Overloaded Fab Kills . | . . Hacking | -11 -10 --------- Run | Yrd Mat Machines Accessed 1 | . 1 Terminals . | . . Fabricators . | . . Repair Stations 1 | . 1 Recycling Units . | . . Scanalyzers . | . . Garrison Access . | . . Total Hacks 5 | . 5 Successful 4 | . 4 Failed 1 | . 1 Catastrophic . | . . Database Lockouts . | . . Manual 1 | . 1 Terminals . | . . Fabricators . | . . Repair Stations 5 | . 5 Recycling Units . | . . Scanalyzers . | . . Garrison Access . | . . Terminal Hacks . | . . Fabricator Hacks . | . . Repair Station Hacks 4 | . 4 Scan Component 2 | . 2 Repair 2 | . 2 Recycling Unit Hacks . | . . Scanalyzer . | . . Garrison Access Hacks . | . . Unauthorized Hacks . | . . Terminals . | . . Fabricators . | . . Repair Stations . | . . Recycling Units . | . . Scanalyzers . | . . Garrison Access . | . . Data Cores Recovered . | . . Used . | . . Hacking Detections . | . . Full Trace Events . | . . Feedback Events . | . . Feedback Blocked . | . . Robot Schematics Acquired . | . . Robots Built . | . . Authchips . | . . Time . | . . Total Robot Build Rating . | . . Part Schematics Acquired . | . . Parts Built . | . . Authchips . | . . Time . | . . Total Part Build Rating . | . . Part Studies Acquired . | . . Parts Repaired 2 | . 2 Time 52 | . 52 Parts Recycled . | . . Recycled Matter . | . . Retrieved Matter . | . . Retrieved Components . | . . Parts Scanalyzed . | . . Part Schematics Acquired . | . . Parts Damaged . | . . Bothacking | -11 -10 ------------ Run | Yrd Mat Used RIF Installer . | . . Robots Hacked . | . . Non-combat . | . . Combat . | . . Robot Hacks Applied . | . . Relay Couplers Released . | . . Fabnet Peak Effective % . | . . Robots Rewired . | . . Allies Hacked . | . . Hacks Repelled . | . . Allies | -11 -10 -------- Run | Yrd Mat Total Allies . | . . Largest Group . | . . Highest-Rated Group . | . . Highest-Rated Ally . | . . Total Orders . | . . Ally Attacks . | . . Total Damage . | . . Kills . | . . Allies Corrupted . | . . Allies Melted . | . . X0-1V1 Amusement Gains 8 | . 8 Good Acts 3 | . 3 Bad Acts 7 | . 7 Intel | -11 -10 ------- Run | Yrd Mat Active Infowar (turns) 1008 | . 1008 Optics 1008 | . 1008 Robot Analysis Total . | . . Derelict Logs Recovered . | . . Drone Launches . | . . Drone Recoveries . | . . Exploration | -11 -10 ------------- Run | Yrd Mat Turns Passed 1411 | . 1411 Spaces Moved 691 | 1 690 Core . | . . Treads 622 | . 622 Legs 69 | 1 68 Wheels . | . . Hover . | . . Flight . | . . Fastest Speed 120 | 120 120 Average Speed 156 | 120 156 Slowest Speed 160 | 120 160 Overloaded Moves . | . . Propulsion Burnouts . | . . Robots Hopped . | . . Potential Cave-ins . | . . Cave-ins Triggered . | . . Exploration Rate (%) 50 | 2 98 Regions Visited 1 Branch Regions . Pre-discovered Areas . | . . Known Exits Taken . | . . Unknown Exits Taken 1 | 1 . Scrap Searched . | . . Spaces Dug . | . . Terrain Destroyed . | . . Melee . | . . Projectile . | . . AOE . | . . Terrain Rammed . | . . Walls Destroyed . | . . Machines Disabled . | . . Actions | -11 -10 --------- Run | Yrd Mat Total 919 | . 919 Wait 128 | . 128 Move 690 | . 690 Hop . | . . Pick Up 8 | . 8 Fast Attach 2 | . 2 Attach 9 | . 9 Detach 1 | . 1 Swap 3 | . 3 Drop 10 | . 10 Fire 68 | . 68 Melee . | . . Ram . | . . Kick . | . . Crush . | . . Escape Stasis . | . . Rewire . | . . Trap . | . . Miscellaneous . | . . Route ------- -11/Scrapyard -10/Materials (discovered 4 exits: [*Mat x2] / [*Min] / [*Sub]) History --------- Turn | Location | Event 1 | -11/Scrapyard | Discovered new exit (range 0) 1 | -11/Scrapyard | Entered Materials 147 | -10/Materials | Discovered new exit (range 16) 307 | -10/Materials | Build established: Mutant 365 | -10/Materials | Discovered new exit (range 16) 575 | -10/Materials | Discovered new exit (range 17) 729 | -10/Materials | Discovered new exit (range 3) 729 | -10/Materials | Prayed at D.C.S.S. Altar Unit 983 | -10/Materials | Discovered new exit (range 17) 1040 | -10/Materials | X0-1V1 tapped a No Entrance sign 1071 | -10/Materials | Repaired Hover Unit 1098 | -10/Materials | Repaired Lgt. Treads 1246 | -10/Materials | X0-1V1 mutated your Weapon slot to Power slot 1288 | -10/Materials | System corruption reached 10% 1374 | -10/Materials | Core integrity fell below 50% 1391 | -10/Materials | Core integrity fell below 20% 1393 | -10/Materials | X0-1V1 upgraded hostiles (x2) 1412 | -10/Materials | Destroyed by G-50 Soldier with Heavy Laser Last Messages --------------- 01395_ K-01 Serf collects debris. 01398_ X0-1V1: "A slightly more accurate toy is still a toy." (+10% ranged accuracy) 01398_ K-01 Serf collects debris. 01399_ K-01 Serf destroyed. 01400_ Imp. EM Shotgun destroyed. 01401_ K-01 Serf collects debris. 01403_ X0-1V1: "The ol' switcheroo!" G-47 Trooper form resolidifies at new position. K-01 Serf form resolidifies at new position. Form resolidifies at new position. M-13 Machinist form resolidifies at new position. 01403_ G-47 Trooper knocked back. 01406_ K-01 Serf collects debris. 01407_ X0-1V1: "And it's a trip and a fumble!" 01407_ Lgt. Ion Engine tossed aside. 01409_ G-47 Trooper destroyed. 01409_ K-01 Serf collects debris. 01412_ X0-1V1: "Huh? Did I miss anything?" Map ----- +----------------------------------------------------+ | #????# [## #???????# # "" | | #????# ## #???????# """"" # | | ####????# ""T"" ## #???????# """"" + | | ????????# """"" ## #???????# """"" # "" | | ????????########## #???????# """"" !###### "" | | #########[ # #???????# """"" #????# "" | | ## # #???????# """"" #????# | | "" " ## """ # #???????# """"" #????# | | "Y """ ## """ # #???????# #????# "" | | "" """ ## """ + #???????##########????## "" | | """ ## """ # #??????????????????????# "" | | "" ## """ # #?##########???????????# %=* | | """ ## # #?# #???????????# %= | | "" ## # #?#* #??########## ### | | * """ ########### #?#%! #??# #?# | | " #?????????# %#?# #??# #?# | | #?????????# #?# #### #?# | | #+################ #?# + #?# | | [ #?# ###############?# | | #?# #???????????????# | | g #?# #???????????????# | | ##################% % #######+####???????????????# | | ?????????????????# % #????###########??# | | ?????????????????# = % #????# #### | | ?????????????????# =%! #????# """ """ # = | | ?????????????????# =%*%=@########### """ """ # | | ####?????????????# *%m= # ## """ """ + T | | #???????####### [k%! # ## # | | #???????# # + ## # | | #???????#! # # ## "T" ## | | #???????# # # ## ! """ ## | | #???????# # ##/################### | | #???????# # #???????????????# | | #???????# + #???????????????# | | #???????# # #???????????????# | | #???????# # < ##+######+#???????????????# | | #???????# # # = #???????????????# | | ####???????# ##### #???????????????# < | | ???????????# #???# """ """ #???????????????# | | ???????????# #???# """ """ #???????????????### | | ???????????#######???# """ """ #?????????????????? | | ?????????????????????# """ #?????????????????? | | ?????????????????????# """ #?????????????????? | | ?????????????????????# | #?????????????????? | | ?????????????????????##?########?????????????????? | | ?????????????????????????????????????????????????? | | ?????????????????????????????????????????????????? | | | | | | | +----------------------------------------------------+ Best States ------------- Heat Dissipation 25 Energy Generation 10 Energy Capacity 125 Matter Stores 300 Matter Capacity 300 Sight Range 18 Terrain Scan Density 10 Evasion (%) 55 Recoil Reduction 2 Item Schematics ----------------- None Robot Schematics ------------------ None Fabricated ------------ Nothing Repaired ---------- Hover Unit | 83% | -10/Materials Lgt. Treads | 87% | -10/Materials Studied --------- None Alien Tech Used ----------------- None Achievements -------------- None Challenges ------------ None Game ------ Seed NuclearModifiedPulseblaster Manual? 0 Play Time 00:11:16 Cumulative 74.5 hours Start 2026.08.20 @ 22:46:36 End 2026.08.20 @ 23:08:49 Sessions 1 Manual Loads 0 Difficulty Rogue Special Mode None Game No. 127 Rogue 126 Adventurer 1 Explorer 0 Win Type - Total 3 Types 3/0/0/0/0/0/0/0/0/0 Lore% 30 Gallery% 49 Achievement% 32 Wizard Run 0 Options --------- Layout 1 ASCII 0 Keyboard 0 Movement Numpad Keybinds 0 Fullscreen 1 Font 24/Smallcaps Map View 50x35 Zoom Use 0% Tactical HUD 1 Map Filters NONE Filters NONE Steam 1 RUN: f1d3c299-ba36-43b7-b724-ee79e88d458e